fUSD/lending_fUSD_20240212
["ID","MTS","AMOUNT","RATE_DAILY","PERIOD"]
[313778676,1707717050575,-601.05792827,0.00023,2]
[313778677,1707717050587,-535.20750838,0.00023,2]
[313778678,1707717050612,-541.05532265,0.00023,2]
[313778679,1707717050623,-312.14320097,0.00023,2]
[313778680,1707717050644,-713.6500075,0.00023,2]
[313778681,1707717050655,-323.2625314,0.00023,2]
[313778682,1707717051006,-1612.60638186,0.00023,2]
[313778683,1707717051018,-2257.69327903,0.00023,2]
[313778684,1707717051029,-6285.25396417,0.00023,2]
[313778685,1707717051040,-13685.31464977,0.00023,2]
[313778686,1707717051060,-578.05404019,0.00023,2]
[313778687,1707717051317,-891.04363949,0.00023,2]
[313778688,1707717051329,-702.18179164,0.00023,2]
[313778689,1707717051341,-1449.54671138,0.00023,2]
[313778690,1707717051405,-273.74769567,0.00023,2]
[313778691,1707717051416,-696.05985471,0.00023,2]
[313778692,1707717051452,-1515.01903168,0.00023,2]
[313778693,1707717051580,-293.33957425,0.00023,2]
[313778694,1707717051592,-150259.14569209,0.00023,2]
[313778695,1707717051612,-29759.57203838,0.00023,2]
[313778696,1707717051625,-709.2393386,0.00023,2]
[313778697,1707717052036,-2347.46759022,0.00022949,2]
[313778698,1707717052048,-258.10524408,0.00022949,2]
[313778699,1707717052058,-252.2255668,0.00022949,2]
[313778700,1707717052068,-218.62458643,0.00022949,2]
[313778701,1707717052078,-217.74202424,0.00022952,2]
[313778702,1707717052088,-1382.47942845,0.00023,2]
[313778703,1707717052101,-14723.9746968,0.00023,2]
[313778704,1707717052114,-2408.7063211,0.00023,2]
[313778705,1707717052131,-443.2091924,0.00023,2]
[313778706,1707717104923,228.22,0.00022038,2]
[313778707,1707717222291,177.24,0.00022,2]
[313778708,1707717227102,509.37361083,0.00022,2]
[313778709,1707717245424,170.69,0.0002202,2]
[313778710,1707717373920,165.37,0.00022036,2]
[313778711,1707717417592,253.26198724,0.00022,2]
[313778712,1707717421189,150.0,0.00022,2]
[313778713,1707717426896,150.0,0.00022,2]
[313778714,1707717517433,132.44040152,0.00022176,2]
[313778715,1707717517458,24.81959848,0.00022176,2]
[313778716,1707717518034,157.26,0.00022341,2]
[313778717,1707717565845,180.0,0.00025,32]
[313778718,1707717631941,1000.0,0.0002199,2]
[313778719,1707717662131,201.26,0.00021976,2]
[313778720,1707717673479,876.60554203,0.00020011,2]
[313778721,1707717684448,405.74814099,0.0002133,2]
[313778722,1707717688949,952.15298599,0.0002,2]
[313778723,1707717691518,739.98001951,0.00020011,2]
[313778724,1707717691549,136.62552252,0.00020011,2]
[313778725,1707717735583,157.09,0.00020051,2]
[313778726,1707717744084,500.0,0.00020011,2]
[313778727,1707717745363,535.66883484,0.00020011,2]
[313778728,1707717747631,869.67746725,0.00020011,2]
[313778729,1707717747702,284.1069284,0.00020011,2]
[313778730,1707717752154,888.30504813,0.00020011,2]
[313778731,1707717752277,173.96,0.00021961,2]
[313778732,1707717752310,812.39248586,0.00020011,2]
[313778733,1707717752332,1527.76671779,0.00020011,2]
[313778734,1707717753845,909.41463107,0.00020011,2]
[313778735,1707717759467,272.82574292,0.00020011,2]
[313778736,1707717760058,500.0,0.00020011,2]
[313778737,1707717769443,284.1069284,0.00020011,2]
[313778738,1707717769832,710.96685025,0.00020011,2]
[313778739,1707717772324,2337.27798592,0.00020011,2]
[313778740,1707717774244,888.30504813,0.00020011,2]
[313778741,1707717777288,869.67746725,0.00020011,2]
[313778742,1707717777473,331.41271451,0.00020011,2]
[313778743,1707717779435,535.66883484,0.00020011,2]
[313778744,1707717787836,810.61582788,0.00020011,2]
[313778745,1707717788140,874.45882566,0.00020011,2]
[313778746,1707717821847,158.50522982,0.00022398,2]
[313778747,1707717825818,165.37,0.00021929,2]
[313778748,1707717840397,354.24,0.00022,2]
[313778749,1707717991602,157.26,0.00021995,2]
[313778750,1707717991827,157.26,0.00022224,2]
[313778751,1707718123202,177.64,0.00016712,2]
[313778752,1707718129603,200.0,0.00021839,2]
[313778770,1707718170201,167.71,0.00021819,2]
[313778778,1707718216248,154.4,0.00019916,2]
[313778779,1707718216400,154.4,0.00022305,2]
[313778782,1707718232220,-155.0,0.00022442,2]
[313778783,1707718232229,-178.79521264,0.00022443,2]
[313778784,1707718232238,-155.0,0.00022444,2]
[313778785,1707718232247,-12.51366138,0.00022453,2]
[313778787,1707718232276,-144.74633862,0.00022453,2]
[313778789,1707718232285,-158.50522974,0.00022461,2]
[313778791,1707718232294,-150.0,0.00022496,2]
[313778793,1707718232303,-4544.08540956,0.00022497,2]
[313778794,1707718232312,-897.59608679,0.00022498,2]
[313778795,1707718232321,-25709.97282127,0.00022498,2]
[313778796,1707718232330,-158.50522974,0.00022524,2]
[313778797,1707718232339,-1036.95118934,0.0002254,2]
[313778798,1707718232348,-150.98626039,0.00022548,2]
[313778799,1707718232357,-257.26,0.00022548,2]
[313778800,1707718232366,-150.99,0.00022548,2]
[313778801,1707718232375,-158.50522974,0.00022586,2]
[313778802,1707718232384,-158.50522974,0.00022649,2]
[313778803,1707718232394,-157.26,0.00022682,2]
[313778804,1707718232402,-1028.49807035,0.00022699,2]
[313778805,1707718232411,-1000.0,0.000227,2]
[313778806,1707718232420,-158.50522974,0.00022712,2]
[313778807,1707718232429,-158.50522974,0.00022775,2]
[313778808,1707718232438,-158.50522974,0.00022837,2]
[313778809,1707718232446,-1359.75977149,0.00022848,2]
[313778810,1707718232455,-171.41527608,0.00022898,2]
[313778811,1707718232464,-499.99,0.000229,2]
[313778812,1707718232473,-179.04256394,0.000229,2]
[313778813,1707718232482,-2462.06993439,0.000229,2]
[313778814,1707718232491,-189.03109604,0.000229,2]
[313778815,1707718232500,-158.50522974,0.000229,2]
[313778816,1707718232509,-1620.74,0.000229,2]
[313778817,1707718232518,-171.41527608,0.000229,2]
[313778818,1707718232526,-411.41,0.000229,2]
[313778819,1707718232535,-411.54,0.000229,2]
[313778820,1707718232545,-168.29903438,0.000229,2]
[313778821,1707718232554,-1278.80454914,0.000229,2]
[313778822,1707718232563,-264.08778324,0.000229,2]
[313778823,1707718232571,-157.26,0.00022912,2]
[313778824,1707718232580,-232.55656092,0.0002294,2]
[313778825,1707718232589,-201.14503102,0.00022947,2]
[313778826,1707718232598,-2305.97,0.00022947,2]
[313778827,1707718232607,-500.0,0.00022947,2]
[313778828,1707718232616,-9159.22,0.00022947,2]
[313778829,1707718232626,-500.0,0.00022947,2]
[313778830,1707718232635,-500.0,0.00022947,2]
[313778831,1707718232645,-500.0,0.00022947,2]
[313778832,1707718232654,-769.19,0.00022947,2]
[313778833,1707718232663,-2719.17,0.00022947,2]
[313778834,1707718232672,-503.52,0.00022947,2]
[313778835,1707718232681,-500.0,0.00022947,2]
[313778836,1707718232690,-500.0,0.00022947,2]
[313778837,1707718232702,-3333.17,0.00022947,2]
[313778838,1707718232711,-561.61,0.00022947,2]
[313778839,1707718232720,-884.65,0.00022947,2]
[313778840,1707718232730,-500.0,0.00022947,2]
[313778841,1707718232739,-306.8105594,0.00022947,2]
[313778842,1707718232760,-1272.22164415,0.00022947,2]
[313778843,1707718232810,-4757.08779645,0.00022947,2]
[313778844,1707718232819,-500.0,0.00022947,2]
[313778845,1707718232829,-554.79,0.00022947,2]
[313778846,1707718232838,-513.33,0.00022947,2]
[313778847,1707718232847,-530.17,0.00022947,2]
[313778848,1707718232855,-2275.75,0.00022947,2]
[313778849,1707718232864,-614.44,0.00022947,2]
[313778850,1707718232874,-2678.42,0.00022947,2]
[313778851,1707718232882,-500.0,0.00022947,2]
[313778852,1707718232891,-540.74,0.00022947,2]
[313778853,1707718232900,-1423.28,0.00022947,2]
[313778854,1707718232909,-657.63,0.00022947,2]
[313778855,1707718232918,-542.89,0.00022947,2]
[313778856,1707718232927,-1096.14,0.00022947,2]
[313778857,1707718232936,-500.0,0.00022947,2]
[313778858,1707718232945,-185.58952525,0.00022947,2]
[313778859,1707718232954,-500.0,0.00022947,2]
[313778860,1707718232963,-522.18,0.00022947,2]
[313778861,1707718232972,-2316.63,0.00022947,2]
[313778862,1707718232981,-1048.24,0.00022947,2]
[313778863,1707718232990,-873.6,0.00022947,2]
[313778864,1707718232999,-3813.79,0.00022947,2]
[313778865,1707718233008,-500.0,0.00022948,2]
[313778866,1707718233017,-500.0,0.00022948,2]
[313778867,1707718233026,-500.0,0.00022948,2]
[313778868,1707718233035,-500.0,0.00022948,2]
[313778869,1707718233044,-500.0,0.00022948,2]
[313778870,1707718233053,-500.0,0.00022948,2]
[313778871,1707718233062,-832.82,0.00022948,2]
[313778872,1707718233070,-500.0,0.00022948,2]
[313778873,1707718233079,-500.0,0.00022948,2]
[313778874,1707718233088,-951.66,0.00022948,2]
[313778875,1707718233097,-500.0,0.00022948,2]
[313778876,1707718233106,-500.0,0.00022948,2]
[313778877,1707718233114,-624.93138568,0.00022948,2]
[313778878,1707718233123,-764.46,0.00022948,2]
[313778879,1707718233132,-823.8,0.00022948,2]
[313778880,1707718233141,-500.0,0.00022948,2]
[313778881,1707718233150,-794.62,0.00022948,2]
[313778882,1707718233159,-500.0,0.00022948,2]
[313778883,1707718233168,-500.0,0.00022948,2]
[313778884,1707718233176,-500.0,0.00022948,2]
[313778885,1707718233185,-662.35,0.00022948,2]
[313778886,1707718233195,-255.84305876,0.00022948,2]
[313778887,1707718233204,-530.21,0.00022948,2]
[313778888,1707718233213,-500.0,0.00022948,2]
[313778889,1707718233222,-500.0,0.00022948,2]
[313778890,1707718233231,-500.0,0.00022948,2]
[313778891,1707718233240,-521.19,0.00022948,2]
[313778892,1707718233249,-500.0,0.00022948,2]
[313778893,1707718233258,-646.21,0.00022948,2]
[313778894,1707718233267,-957.2,0.00022948,2]
[313778895,1707718233275,-500.0,0.00022948,2]
[313778896,1707718233284,-135.52611373,0.00022948,2]
[313778897,1707718233297,-364.47388627,0.00022948,2]
[313778898,1707718233306,-718.12,0.00022948,2]
[313778899,1707718233315,-773.1,0.00022948,2]
[313778900,1707718233324,-554.02159386,0.00022948,2]
[313778901,1707718233333,-500.0,0.00022948,2]
[313778902,1707718233342,-956.39,0.00022948,2]
[313778903,1707718233351,-532.12,0.00022948,2]
[313778904,1707718233360,-721.97,0.00022948,2]
[313778905,1707718233369,-500.0,0.00022948,2]
[313778906,1707718233378,-500.0,0.00022948,2]
[313778907,1707718233387,-500.0,0.00022948,2]
[313778908,1707718233397,-1134.51,0.00022948,2]
[313778909,1707718233405,-1276.78,0.00022948,2]
[313778910,1707718233414,-573.08,0.00022948,2]
[313778911,1707718233423,-500.0,0.00022948,2]
[313778912,1707718233432,-530.11,0.00022948,2]
[313778913,1707718233441,-1148.62,0.00022948,2]
[313778914,1707718233450,-500.0,0.00022948,2]
[313778915,1707718233459,-500.0,0.00022948,2]
[313778916,1707718233468,-500.0,0.00022948,2]
[313778917,1707718233479,-500.0,0.00022948,2]
[313778918,1707718233488,-727.0,0.00022948,2]
[313778919,1707718233497,-649.04141032,0.00022948,2]
[313778920,1707718233509,-202.00858968,0.00022948,2]
[313778921,1707718233518,-302.68562308,0.00022948,2]
[313778922,1707718233584,-197.31437692,0.00022948,2]
[313778923,1707718233594,-1219.78,0.00022948,2]
[313778924,1707718233605,-500.0,0.00022948,2]
[313778925,1707718233616,-500.0,0.00022948,2]
[313778926,1707718233626,-506.35704808,0.00022948,2]
[313778927,1707718233636,-518.48,0.00022948,2]
[313778928,1707718233651,-1052.02,0.00022948,2]
[313778929,1707718233661,-500.0,0.00022948,2]
[313778930,1707718233672,-500.0,0.00022948,2]
[313778931,1707718233682,-500.0,0.00022948,2]
[313778932,1707718233692,-1076.19,0.00022948,2]
[313778933,1707718233705,-500.0,0.00022948,2]
[313778934,1707718233715,-559.62,0.00022948,2]
[313778935,1707718233725,-500.0,0.00022948,2]
[313778936,1707718233735,-500.0,0.00022948,2]
[313778937,1707718233746,-602.53,0.00022948,2]
[313778938,1707718233756,-500.0,0.00022948,2]
[313778939,1707718233766,-975.09,0.00022948,2]
[313778940,1707718233780,-500.0,0.00022948,2]
[313778941,1707718233790,-631.35,0.00022948,2]
[313778942,1707718233800,-500.0,0.00022948,2]
[313778943,1707718233811,-500.0,0.00022948,2]
[313778944,1707718233820,-500.0,0.00022948,2]
[313778945,1707718233830,-598.7,0.00022948,2]
[313778946,1707718233839,-500.0,0.00022948,2]
[313778947,1707718233849,-500.0,0.00022948,2]
[313778948,1707718233859,-500.0,0.00022948,2]
[313778949,1707718233868,-856.79,0.00022948,2]
[313778950,1707718233878,-500.0,0.00022948,2]
[313778951,1707718233887,-500.0,0.00022948,2]
[313778952,1707718233903,-885.07,0.00022948,2]
[313778953,1707718233913,-500.0,0.00022948,2]
[313778954,1707718233922,-500.0,0.00022948,2]
[313778955,1707718233932,-500.0,0.00022948,2]
[313778956,1707718233942,-500.0,0.00022948,2]
[313778957,1707718233951,-500.0,0.00022948,2]
[313778958,1707718233961,-500.0,0.00022948,2]
[313778959,1707718233970,-1549.67,0.00022948,2]
[313778960,1707718233979,-500.0,0.00022948,2]
[313778961,1707718233989,-500.0,0.00022948,2]
[313778962,1707718233998,-500.0,0.00022948,2]
[313778963,1707718234007,-500.0,0.00022948,2]
[313778964,1707718234016,-500.0,0.00022948,2]
[313778965,1707718234026,-500.0,0.00022948,2]
[313778966,1707718234034,-1378.63,0.00022948,2]
[313778967,1707718234044,-592.46,0.00022948,2]
[313778968,1707718234053,-1165.94,0.00022948,2]
[313778969,1707718234061,-1028.8,0.00022948,2]
[313778970,1707718234070,-508.28,0.00022948,2]
[313778971,1707718234079,-500.0,0.00022948,2]
[313778972,1707718234089,-555.68,0.00022948,2]
[313778973,1707718234099,-1808.71,0.00022948,2]
[313778974,1707718234109,-500.0,0.00022948,2]
[313778975,1707718234118,-500.0,0.00022948,2]
[313778976,1707718234127,-1694.22,0.00022948,2]
[313778977,1707718234136,-532.79,0.00022948,2]
[313778978,1707718234152,-557.34213755,0.00022948,2]
[313778979,1707718234162,-832.24,0.00022948,2]
[313778980,1707718234171,-500.0,0.00022948,2]
[313778981,1707718234180,-1686.01,0.00022948,2]
[313778982,1707718234188,-1179.96,0.00022948,2]
[313778983,1707718234197,-737.65,0.00022948,2]
[313778984,1707718234206,-969.23,0.00022948,2]
[313778985,1707718234215,-500.0,0.00022948,2]
[313778986,1707718234224,-500.0,0.00022948,2]
[313778987,1707718234232,-276.07588463,0.00022948,2]
[313778988,1707718234241,-1235.2,0.00022948,2]
[313778989,1707718234250,-500.0,0.00022948,2]
[313778990,1707718234260,-506.57,0.00022948,2]
[313778991,1707718234269,-500.0,0.00022948,2]
[313778992,1707718234277,-500.0,0.00022948,2]
[313778993,1707718234286,-500.0,0.00022948,2]
[313778994,1707718234295,-679.68,0.00022948,2]
[313778995,1707718234304,-500.0,0.00022948,2]
[313778996,1707718234313,-500.0,0.00022948,2]
[313778997,1707718234322,-500.0,0.00022948,2]
[313778998,1707718234331,-670.07,0.00022948,2]
[313778999,1707718234340,-500.0,0.00022948,2]
[313779000,1707718234348,-500.0,0.00022948,2]
[313779001,1707718234357,-1606.87,0.00022948,2]
[313779002,1707718234366,-500.0,0.00022948,2]
[313779003,1707718234375,-384.49612598,0.00022948,2]
[313779004,1707718234383,-500.0,0.00022948,2]
[313779005,1707718234397,-1344.12,0.00022948,2]
[313779006,1707718234406,-500.0,0.00022948,2]
[313779007,1707718234415,-768.09,0.00022948,2]
[313779008,1707718234423,-500.0,0.00022948,2]
[313779009,1707718234432,-500.0,0.00022948,2]
[313779010,1707718234441,-894.95,0.00022948,2]
[313779011,1707718234450,-500.0,0.00022948,2]
[313779012,1707718234459,-500.0,0.00022948,2]
[313779013,1707718234644,-500.0,0.00022948,2]
[313779014,1707718234687,-500.0,0.00022948,2]
[313779015,1707718234697,-500.0,0.00022948,2]
[313779016,1707718234710,-526.15036204,0.00022948,2]
[313779017,1707718234719,-500.0,0.00022948,2]
[313779018,1707718234728,-500.0,0.00022948,2]
[313779019,1707718234737,-500.0,0.00022948,2]
[313779020,1707718234746,-500.0,0.00022948,2]
[313779021,1707718234756,-500.0,0.00022948,2]
[313779022,1707718234765,-500.0,0.00022948,2]
[313779023,1707718234774,-233.96375017,0.00022948,2]
[313779024,1707718234789,-266.03624983,0.00022948,2]
[313779025,1707718234798,-500.0,0.00022948,2]
[313779026,1707718234807,-150.0,0.00022948,2]
[313779027,1707718234815,-500.0,0.00022948,2]
[313779028,1707718234824,-500.0,0.00022948,2]
[313779029,1707718234834,-84.13214038,0.00022948,2]
[313779030,1707718234845,-415.86785962,0.00022948,2]
[313779031,1707718234854,-328.7738265,0.00022948,2]
[313779032,1707718234865,-171.2261735,0.00022948,2]
[313779033,1707718234874,-302.37755606,0.00022948,2]
[313779034,1707718234896,-197.62244394,0.00022948,2]
[313779035,1707718234905,-101.06806227,0.00022948,2]
[313779036,1707718234915,-398.93193773,0.00022948,2]
[313779037,1707718234924,-29.57614227,0.00022948,2]
[313779038,1707718234984,-470.42385773,0.00022948,2]
[313779039,1707718234993,-545.84947884,0.00022948,2]
[313779068,1707718238440,-196.1704129,0.00022848,3]
[313779070,1707718238449,-532.39,0.00022947,2]
[313779072,1707718238458,-500.0,0.00022948,2]
[313779074,1707718238468,-500.0,0.00022948,2]
[313779076,1707718238477,-500.0,0.00022948,2]
[313779078,1707718238486,-500.0,0.00022948,2]
[313779080,1707718238495,-500.0,0.00022948,2]
[313779082,1707718238505,-500.0,0.00022948,2]
[313779084,1707718238514,-500.0,0.00022948,2]
[313779086,1707718238523,-584.61612189,0.00022948,2]
[313779088,1707718238533,-500.0,0.00022948,2]
[313779090,1707718238542,-500.0,0.00022948,2]
[313779091,1707718238551,-150.0,0.00022948,2]
[313779092,1707718238560,-500.0,0.00022948,2]
[313779093,1707718238569,-2762.46114146,0.00022948,2]
[313779094,1707718238725,-2611.14885854,0.00022948,2]
[313779095,1707718238734,-500.0,0.00022948,2]
[313779096,1707718238743,-500.0,0.00022948,2]
[313779097,1707718238753,-500.0,0.00022948,2]
[313779098,1707718238763,-500.0,0.00022948,2]
[313779099,1707718238772,-500.0,0.00022948,2]
[313779100,1707718238783,-500.0,0.00022948,2]
[313779101,1707718238792,-500.0,0.00022948,2]
[313779102,1707718238801,-500.0,0.00022948,2]
[313779103,1707718238810,-500.0,0.00022948,2]
[313779105,1707718238819,-772.13,0.00022948,2]
[313779107,1707718238828,-1736.3,0.00022948,2]
[313779109,1707718238837,-500.0,0.00022948,2]
[313779111,1707718238846,-556.77574441,0.00022948,2]
[313779113,1707718238855,-559.55915901,0.00022948,2]
[313779115,1707718238864,-500.0,0.00022948,2]
[313779117,1707718238874,-723.96,0.00022948,2]
[313779119,1707718238883,-224.28307785,0.00022948,2]
[313779121,1707718238891,-500.0,0.00022948,2]
[313779123,1707718238900,-629.08015795,0.00022948,2]
[313779125,1707718238910,-514.48510988,0.00022948,2]
[313779127,1707718238919,-111.62219236,0.00022948,2]
[313779129,1707718238931,-1208.70780764,0.00022948,2]
[313779131,1707718238940,-1840.2,0.00022948,2]
[313779133,1707718238949,-500.0,0.00022948,2]
[313779135,1707718238959,-586.29,0.00022948,2]
[313779137,1707718238968,-500.0,0.00022948,2]
[313779139,1707718239206,-549.32,0.00022948,2]
[313779140,1707718239216,-500.0,0.00022948,2]
[313779141,1707718239226,-500.0,0.00022948,2]
[313779142,1707718239235,-1429.66,0.00022948,2]
[313779143,1707718239245,-500.0,0.00022948,2]
[313779144,1707718239254,-4535.92249236,0.00022948,2]
[313779145,1707718239341,-776.14750764,0.00022948,2]
[313779146,1707718239351,-500.0,0.00022948,2]
[313779147,1707718239360,-555.59267933,0.00022948,2]
[313779148,1707718239369,-221.70172499,0.00022948,2]
[313779149,1707718239379,-500.0,0.00022948,2]
[313779150,1707718239388,-2269.86,0.00022948,2]
[313779151,1707718239397,-500.0,0.00022948,2]
[313779152,1707718239407,-500.0,0.00022948,2]
[313779153,1707718239416,-500.0,0.00022948,2]
[313779154,1707718239425,-520.98,0.00022948,2]
[313779155,1707718239434,-505.18,0.00022948,2]
[313779156,1707718239443,-188.10494256,0.00022948,2]
[313779157,1707718239453,-500.0,0.00022948,2]
[313779158,1707718239462,-9438.77,0.00022948,2]
[313779159,1707718239471,-500.0,0.00022948,2]
[313779160,1707718239480,-500.0,0.00022948,2]
[313779161,1707718239489,-500.0,0.00022948,2]
[313779162,1707718239498,-500.0,0.00022948,2]
[313779163,1707718239507,-500.0,0.00022948,2]
[313779164,1707718239516,-500.0,0.00022948,2]
[313779165,1707718239526,-1605.14,0.00022948,2]
[313779166,1707718239535,-500.0,0.00022948,2]
[313779167,1707718239544,-383.96168359,0.00022948,2]
[313779168,1707718239553,-6784.44,0.00022948,2]
[313779169,1707718239562,-493.38845289,0.00022948,2]
[313779176,1707718240905,-391.26344579,0.00022947,2]
[313779177,1707718241641,-108.73655421,0.00022947,2]
[313779178,1707718241651,-1381.56,0.00022947,2]
[313779179,1707718241660,-565.37,0.00022947,2]
[313779180,1707718241670,-6.61154711,0.00022948,2]
[313779181,1707718241679,-174.52521213,0.00022948,2]
[313779182,1707718241688,-500.0,0.00022948,2]
[313779183,1707718241697,-500.0,0.00022948,2]
[313779184,1707718241708,-500.0,0.00022948,2]
[313779185,1707718241718,-5200.38,0.00022948,2]
[313779186,1707718241727,-500.0,0.00022948,2]
[313779187,1707718241736,-500.0,0.00022948,2]
[313779188,1707718241745,-500.0,0.00022948,2]
[313779189,1707718241755,-2426.47,0.00022948,2]
[313779190,1707718241764,-1555.6,0.00022948,2]
[313779191,1707718241773,-573.93,0.00022948,2]
[313779192,1707718241783,-997.5,0.00022948,2]
[313779193,1707718241793,-500.0,0.00022948,2]
[313779194,1707718241802,-4018.9,0.00022948,2]
[313779195,1707718241811,-500.0,0.00022948,2]
[313779196,1707718241820,-500.0,0.00022948,2]
[313779197,1707718241829,-626.71,0.00022948,2]
[313779198,1707718241838,-500.0,0.00022948,2]
[313779199,1707718241847,-500.0,0.00022948,2]
[313779201,1707718241856,-500.0,0.00022948,2]
[313779203,1707718241866,-500.0,0.00022948,2]
[313779205,1707718241874,-500.0,0.00022948,2]
[313779207,1707718241884,-500.0,0.00022948,2]
[313779209,1707718241893,-727.11,0.00022948,2]
[313779211,1707718241902,-500.0,0.00022948,2]
[313779213,1707718241911,-852.46,0.00022948,2]
[313779215,1707718241921,-1490.66,0.00022948,2]
[313779217,1707718241930,-500.0,0.00022948,2]
[313779219,1707718241939,-1670.9,0.00022948,2]
[313779221,1707718241948,-2134.58,0.00022948,2]
[313779223,1707718241957,-982.54,0.00022948,2]
[313779225,1707718241966,-500.0,0.00022948,2]
[313779226,1707718241975,-500.0,0.00022948,2]
[313779228,1707718241984,-956.03,0.00022948,2]
[313779230,1707718241993,-556.01,0.00022948,2]
[313779231,1707718242002,-984.5,0.00022948,2]
[313779232,1707718242011,-620.19,0.00022948,2]
[313779233,1707718242020,-1089.15,0.00022948,2]
[313779234,1707718242029,-500.0,0.00022948,2]
[313779235,1707718242039,-594.2,0.00022948,2]
[313779236,1707718242048,-500.0,0.00022948,2]
[313779237,1707718242056,-500.0,0.00022948,2]
[313779238,1707718242065,-729.33,0.00022948,2]
[313779239,1707718242074,-2368.4,0.00022948,2]
[313779240,1707718242084,-500.0,0.00022948,2]
[313779241,1707718242093,-924.82,0.00022948,2]
[313779242,1707718242102,-500.0,0.00022948,2]
[313779243,1707718242111,-1598.66,0.00022948,2]
[313779244,1707718242120,-1263.96,0.00022948,2]
[313779245,1707718242129,-2992.82,0.00022948,2]
[313779246,1707718242147,-16012.34,0.00022948,2]
[313779247,1707718242163,-500.0,0.00022948,2]
[313779248,1707718242176,-500.0,0.00022948,2]
[313779249,1707718242190,-7489.98,0.00022948,2]
[313779250,1707718242205,-500.0,0.00022948,2]
[313779251,1707718242220,-3659.72,0.00022948,2]
[313779252,1707718242234,-500.0,0.00022948,2]
[313779253,1707718242248,-500.0,0.00022948,2]
[313779254,1707718242260,-500.0,0.00022948,2]
[313779255,1707718242273,-500.0,0.00022948,2]
[313779256,1707718242286,-2735.73,0.00022948,2]
[313779257,1707718242299,-647.17,0.00022948,2]
[313779258,1707718242313,-500.0,0.00022948,2]
[313779259,1707718242324,-1029.87,0.00022948,2]
[313779260,1707718242338,-2171.57,0.00022948,2]
[313779261,1707718242351,-500.0,0.00022948,2]
[313779262,1707718242365,-500.0,0.00022948,2]
[313779263,1707718242378,-1826.97,0.00022948,2]
[313779264,1707718242392,-500.0,0.00022948,2]
[313779265,1707718242406,-500.0,0.00022948,2]
[313779266,1707718242420,-1228.36,0.00022948,2]
[313779267,1707718242434,-500.0,0.00022948,2]
[313779268,1707718242449,-901.45,0.00022948,2]
[313779269,1707718242462,-500.0,0.00022948,2]
[313779270,1707718242472,-571.54,0.00022948,2]
[313779271,1707718242483,-1265.26,0.00022948,2]
[313779272,1707718242497,-500.0,0.00022948,2]
[313779273,1707718242509,-1764.91,0.00022948,2]
[313779274,1707718242523,-500.0,0.00022948,2]
[313779275,1707718242534,-2050.6,0.00022948,2]
[313779276,1707718242545,-459.97953311,0.00022948,2]
[313779277,1707718242557,-543.47,0.00022948,2]
[313779278,1707718242569,-2205.02,0.00022948,2]
[313779279,1707718242584,-500.0,0.00022948,2]
[313779280,1707718242596,-588.69,0.00022948,2]
[313779281,1707718242608,-500.0,0.00022948,2]
[313779282,1707718242620,-501.87,0.00022948,2]
[313779283,1707718242632,-1352.26,0.00022948,2]